{"text_format":"1","workbook":"xlsx","n_sheets":5,"sheets":["Vehicle Polygon","Kerb Polygon","EPTa Polygon","EPTc Polygon","EBT Polygon"],"not_rendered":{"charts":5,"images":6,"macros":1,"external_links":0,"defined_names":0,"comments":0,"pivot_tables":0},"unopened":[],"bounds":{"document_bytes":16777216,"sheet_cells":100000,"rows_first":2000,"rows_last":500,"rows_between":2000,"halvings":0,"cell_chars":16384,"cell_head_chars":4096},"cells_cut":0,"cells_raw":0,"read":"whole","date_system":"1900"}

{"sheet":"Vehicle Polygon","index":0,"n_rows":34,"n_cols":18,"rows_kept":34,"cut":false,"hidden":false,"merged":[[1,3,3,15],[10,3,12,3],[14,3,16,3],[28,3,33,3],[9,1,33,2],[17,3,22,3],[23,3,24,3],[5,3,5,4],[6,3,6,4],[26,3,27,3],[5,1,7,2]]}
[]
[null,null,null,"RT-Range vehicle polygon profile creator"]
[]
[]
[null,null,null,null,null,"Forward","Right"]
[null,"1. Enter vehicle legnth and width here",null,"Vehicle legnth",null,4]
[null,null,null,"Vehicle width (exlcuding door mirrors)",null,1.8,null,null,null,null,null,null,null,null,null,null,null,{"$f":"\"-range1_polygon_ref_num1\"","v":"-range1_polygon_ref_num1"}]
[null,null,null,"Origin to the extent of RHS door mirror",null,2.4,1,null,null,null,null,null,null,null,null,null,null,{"$f":"\"-range1_polygon_origin0_0_0\"","v":"-range1_polygon_origin0_0_0"}]
[null,null,null,null,null,null,null,null,null,null,null,null,null,null,null,null,null,{"$f":"\"-range1_polygon_num_points24\"","v":"-range1_polygon_num_points24"}]
[null,"2. Enter the origin point from the RT",null,"Vehicle section","Polygon point","Forward","Right","Notes",null,null,null,null,null,null,null,null,null,{"$f":"_xlfn.CONCAT(\"-range1_polygon_point\",E11,\"_\",F11,\"_\",G11)","v":"-range1_polygon_point1_3.69_-0.85"}]
[null,null,null,"Front left",1,{"$f":"F17","v":3.69},{"$f":"G34+0.05","v":-0.85},"Front left corner",null,null,null,null,null,null,null,null,null,"-range1_polygon_point2_3.96_-0.55"]
[null,null,null,null,2,{"$f":"F16","v":3.96},{"$f":"G11+0.3","v":-0.55000000000000004},null,null,null,null,null,null,null,null,null,null,"-range1_polygon_point3_4_-0.25"]
[null,null,null,null,3,{"$f":"F15","v":4},{"$f":"G12+0.3","v":-0.25000000000000006},null,null,null,null,null,null,null,null,null,null,"-range1_polygon_point4_4_0"]
[null,null,null,"Front centre",4,{"$f":"F6+F26","v":4},{"$f":"G26","v":0},"Car length",null,null,null,null,null,null,null,null,null,"-range1_polygon_point5_4_0.25"]
[null,null,null,"Front Right",5,{"$f":"F14","v":4},{"$f":"G16-0.3","v":0.25000000000000006},null,null,null,null,null,null,null,null,null,null,"-range1_polygon_point6_3.96_0.55"]
[null,null,null,null,6,{"$f":"F15-0.04","v":3.96},{"$f":"G17-0.3","v":0.55000000000000004},null,null,null,null,null,null,null,null,null,null,"-range1_polygon_point7_3.69_0.85"]
[null,null,null,null,7,{"$f":"F16-0.27","v":3.69},{"$f":"G18-0.05","v":0.85},"Front Right corner",null,null,null,null,null,null,null,null,null,"-range1_polygon_point8_3.6_0.9"]
[null,null,null,"Right side",8,{"$f":"F14-0.4","v":3.6},{"$f":"F7/2+G26","v":0.9},"Half width of car",null,null,null,null,null,null,null,null,null,"-range1_polygon_point9_2.8_0.9"]
[null,null,null,null,9,{"$f":"F20+0.4","v":2.8},{"$f":"G18","v":0.9},"Front wheel arch",null,null,null,null,null,null,null,null,null,"-range1_polygon_point10_2.4_1"]
[null,null,null,null,10,{"$f":"F8+F26","v":2.4},{"$f":"G26+G8","v":1},"Door mirrors",null,null,null,null,null,null,null,null,null,"-range1_polygon_point11_2.2_0.9"]
[null,null,null,null,11,{"$f":"F20-0.2","v":2.1999999999999997},{"$f":"G18","v":0.9},"Rear of front door",null,null,null,null,null,null,null,null,null,"-range1_polygon_point12_0.77_0.9"]
[null,null,null,null,12,{"$f":"F23+0.5","v":0.77},{"$f":"G18","v":0.9},"Rear wheel arch",null,null,null,null,null,null,null,null,null,"-range1_polygon_point13_0.27_0.85"]
[null,null,null,null,13,{"$f":"F24+0.2","v":0.27},{"$f":"G18-0.05","v":0.85},"Rear right corner",null,null,null,null,null,null,null,null,null,"-range1_polygon_point14_0.07_0.55"]
[null,null,null,"Rear right",14,{"$f":"F25+0.05","v":7.0000000000000007E-2},{"$f":"G23-0.3","v":0.55000000000000004},null,null,null,null,null,null,null,null,null,null,"-range1_polygon_point15_0.02_0.25"]
[null,null,null,null,15,{"$f":"F26+0.02","v":0.02},{"$f":"G24-0.3","v":0.25000000000000006},null,null,null,null,null,null,null,null,null,null,"-range1_polygon_point16_0_0"]
[null,null,null,"Rear centre",16,0,0,"Origin - rear centre",null,null,null,null,null,null,null,null,null,"-range1_polygon_point17_0.02_-0.25"]
[null,null,null,"Rear left",17,{"$f":"F25","v":0.02},{"$f":"G28+0.3","v":-0.25000000000000006},null,null,null,null,null,null,null,null,null,null,"-range1_polygon_point18_0.07_-0.55"]
[null,null,null,null,18,{"$f":"F24","v":7.0000000000000007E-2},{"$f":"G29+0.3","v":-0.55000000000000004},"Rear left corner",null,null,null,null,null,null,null,null,null,"-range1_polygon_point19_0.27_-0.85"]
[null,null,null,"Left  side",19,{"$f":"F23","v":0.27},{"$f":"G34+0.05","v":-0.85},null,null,null,null,null,null,null,null,null,null,"-range1_polygon_point20_0.77_-0.9"]
[null,null,null,null,20,{"$f":"F22","v":0.77},{"$f":"G34","v":-0.9},null,null,null,null,null,null,null,null,null,null,"-range1_polygon_point21_2.2_-0.9"]
[null,null,null,null,21,{"$f":"F21","v":2.1999999999999997},{"$f":"G34","v":-0.9},null,null,null,null,null,null,null,null,null,null,"-range1_polygon_point22_2.4_-1"]
[null,null,null,null,22,{"$f":"F20","v":2.4},{"$f":"G26-G8","v":-1},null,null,null,null,null,null,null,null,null,null,"-range1_polygon_point23_2.8_-0.9"]
[null,null,null,null,23,{"$f":"F19","v":2.8},{"$f":"G34","v":-0.9},null,null,null,null,null,null,null,null,null,null,"-range1_polygon_point24_3.6_-0.9"]
[null,null,null,null,24,{"$f":"F18","v":3.6},{"$f":"G26-F7/2","v":-0.9},null,null,null,null,null,null,null,null,null,null,{"$f":"\"-range1_polygon_on\"","v":"-range1_polygon_on"}]

{"sheet":"Kerb Polygon","index":1,"n_rows":28,"n_cols":18,"rows_kept":28,"cut":false,"hidden":false,"merged":[[1,2,3,14],[5,1,23,1]]}
[]
[null,null,"RT-Range kerb polygon profile creator"]
[]
[]
[]
[null,"\n\nStart here >>>\n\n\n\n\n\n\n\n\n\n\n\n\nEnter the kerb measurements into this table\n\n\n\n\n\n\n","Polygon point","Forward","Right","Notes"]
[null,null,1,0,0,"Origin",null,null,null,null,null,null,null,null,null,null,null,{"$f":"\"-range1_polygon_ref_num1\"","v":"-range1_polygon_ref_num1"}]
[null,null,2,0,1,null,null,null,null,null,null,null,null,null,null,null,null,{"$f":"\"-range1_polygon_origin0_0_0\"","v":"-range1_polygon_origin0_0_0"}]
[null,null,3,0,2,null,null,null,null,null,null,null,null,null,null,null,null,{"$f":"\"-range1_polygon_num_points18\"","v":"-range1_polygon_num_points18"}]
[null,null,4,0,3,null,null,null,null,null,null,null,null,null,null,null,null,{"$f":"_xlfn.CONCAT(\"-range1_polygon_point\",C7,\"_\",D7,\"_\",E7)","v":"-range1_polygon_point1_0_0"}]
[null,null,5,0,4,null,null,null,null,null,null,null,null,null,null,null,null,"-range1_polygon_point2_0_1"]
[null,null,6,0.5,4,null,null,null,null,null,null,null,null,null,null,null,null,"-range1_polygon_point3_0_2"]
[null,null,7,0.5,3,null,null,null,null,null,null,null,null,null,null,null,null,"-range1_polygon_point4_0_3"]
[null,null,8,0.5,2,null,null,null,null,null,null,null,null,null,null,null,null,"-range1_polygon_point5_0_4"]
[null,null,9,0.5,1,null,null,null,null,null,null,null,null,null,null,null,null,"-range1_polygon_point6_0.5_4"]
[null,null,10,0.5,0,null,null,null,null,null,null,null,null,null,null,null,null,"-range1_polygon_point7_0.5_3"]
[null,null,11,0.5,-1,null,null,null,null,null,null,null,null,null,null,null,null,"-range1_polygon_point8_0.5_2"]
[null,null,12,0.5,-2,null,null,null,null,null,null,null,null,null,null,null,null,"-range1_polygon_point9_0.5_1"]
[null,null,13,0.5,-3,null,null,null,null,null,null,null,null,null,null,null,null,"-range1_polygon_point10_0.5_0"]
[null,null,14,0.5,-4,null,null,null,null,null,null,null,null,null,null,null,null,"-range1_polygon_point11_0.5_-1"]
[null,null,15,0,-4,null,null,null,null,null,null,null,null,null,null,null,null,"-range1_polygon_point12_0.5_-2"]
[null,null,16,0,-3,null,null,null,null,null,null,null,null,null,null,null,null,"-range1_polygon_point13_0.5_-3"]
[null,null,17,0,-2,null,null,null,null,null,null,null,null,null,null,null,null,"-range1_polygon_point14_0.5_-4"]
[null,null,18,0,0,null,null,null,null,null,null,null,null,null,null,null,null,"-range1_polygon_point15_0_-4"]
[null,null,null,null,null,null,null,null,null,null,null,null,null,null,null,null,null,"-range1_polygon_point16_0_-3"]
[null,null,null,null,null,null,null,null,null,null,null,null,null,null,null,null,null,"-range1_polygon_point17_0_-2"]
[null,null,null,null,null,null,null,null,null,null,null,null,null,null,null,null,null,"-range1_polygon_point18_0_0"]
[null,null,null,null,null,null,null,null,null,null,null,null,null,null,null,null,null,{"$f":"\"-range1_polygon_on\"","v":"-range1_polygon_on"}]

{"sheet":"EPTa Polygon","index":2,"n_rows":18,"n_cols":18,"rows_kept":18,"cut":false,"hidden":false,"merged":[[6,1,14,2],[1,3,3,15]]}
[]
[null,null,null,"RT-Range EPTa target polygon template"]
[]
[]
[]
[]
[null,"\n\n\n2. Enter the measurements forward and right of the origin here\n\n\n\n\n\n\n",null,"EPTa point","Polygon point","Forward (m)","Right (m)","Notes",null,null,null,null,null,null,null,null,null,{"$f":"\"-range1_polygon_ref_num1\"","v":"-range1_polygon_ref_num1"}]
[null,null,null,"Origin",1,0,0,"Right elbow",null,null,null,null,null,null,null,null,null,{"$f":"\"-range1_polygon_origin0_0_0\"","v":"-range1_polygon_origin0_0_0"}]
[null,null,null,null,2,0,-0.24,"Back left platform",null,null,null,null,null,null,null,null,null,{"$f":"\"-range1_polygon_num_points8\"","v":"-range1_polygon_num_points8"}]
[null,null,null,null,3,0.25,-0.24,"Right middle",null,null,null,null,null,null,null,null,null,{"$f":"_xlfn.CONCAT(\"-range1_polygon_point\",E8,\"_\",F8,\"_\",G8)","v":"-range1_polygon_point1_0_0"}]
[null,null,null,null,4,0.5,-0.24,"Top left",null,null,null,null,null,null,null,null,null,{"$f":"_xlfn.CONCAT(\"-range1_polygon_point\",E9,\"_\",F9,\"_\",G9)","v":"-range1_polygon_point2_0_-0.24"}]
[null,null,null,null,5,0.5,0,"Top middle",null,null,null,null,null,null,null,null,null,"-range1_polygon_point3_0.25_-0.24"]
[null,null,null,null,6,0.5,0.36,"Top right",null,null,null,null,null,null,null,null,null,"-range1_polygon_point4_0.5_-0.24"]
[null,null,null,null,7,0.25,0.36,"Middle right",null,null,null,null,null,null,null,null,null,"-range1_polygon_point5_0.5_0"]
[null,null,null,null,8,0,0.36,"Bottom right",null,null,null,null,null,null,null,null,null,"-range1_polygon_point6_0.5_0.36"]
[null,null,null,null,null,null,null,null,null,null,null,null,null,null,null,null,null,"-range1_polygon_point7_0.25_0.36"]
[null,null,null,null,null,null,null,null,null,null,null,null,null,null,null,null,null,"-range1_polygon_point8_0_0.36"]
[null,null,null,null,null,null,null,null,null,null,null,null,null,null,null,null,null,{"$f":"\"-range1_polygon_on\"","v":"-range1_polygon_on"}]

{"sheet":"EPTc Polygon","index":3,"n_rows":18,"n_cols":18,"rows_kept":18,"cut":false,"hidden":false,"merged":[[6,1,14,2],[1,3,3,15]]}
[]
[null,null,null,"RT-Range EPTc target polygon template"]
[]
[]
[]
[]
[null,"\n\n\n2. Enter the measurements forward and right of the origin here\n\n\n\n\n\n\n",null,"EPTc point","Polygon point","Forward (m)","Right (m)","Notes",null,null,null,null,null,null,null,null,null,{"$f":"\"-range1_polygon_ref_num1\"","v":"-range1_polygon_ref_num1"}]
[null,null,null,"Origin",1,0,0,"Right elbow",null,null,null,null,null,null,null,null,null,{"$f":"\"-range1_polygon_origin0_0_0\"","v":"-range1_polygon_origin0_0_0"}]
[null,null,null,null,2,0,-0.315,"Back left platform",null,null,null,null,null,null,null,null,null,{"$f":"\"-range1_polygon_num_points8\"","v":"-range1_polygon_num_points8"}]
[null,null,null,null,3,0.25,-0.315,"Left middle",null,null,null,null,null,null,null,null,null,{"$f":"_xlfn.CONCAT(\"-range1_polygon_point\",E8,\"_\",F8,\"_\",G8)","v":"-range1_polygon_point1_0_0"}]
[null,null,null,null,4,0.5,-0.315,"Top left",null,null,null,null,null,null,null,null,null,{"$f":"_xlfn.CONCAT(\"-range1_polygon_point\",E9,\"_\",F9,\"_\",G9)","v":"-range1_polygon_point2_0_-0.315"}]
[null,null,null,null,5,0.5,0,"Top middle",null,null,null,null,null,null,null,null,null,"-range1_polygon_point3_0.25_-0.315"]
[null,null,null,null,6,0.5,0.39600000000000002,"Top right",null,null,null,null,null,null,null,null,null,"-range1_polygon_point4_0.5_-0.315"]
[null,null,null,null,7,0.25,0.39600000000000002,"Right middle",null,null,null,null,null,null,null,null,null,"-range1_polygon_point5_0.5_0"]
[null,null,null,null,8,0,0.39600000000000002,"Bottom right",null,null,null,null,null,null,null,null,null,"-range1_polygon_point6_0.5_0.396"]
[null,null,null,null,null,null,null,null,null,null,null,null,null,null,null,null,null,"-range1_polygon_point7_0.25_0.396"]
[null,null,null,null,null,null,null,null,null,null,null,null,null,null,null,null,null,"-range1_polygon_point8_0_0.396"]
[null,null,null,null,null,null,null,null,null,null,null,null,null,null,null,null,null,{"$f":"\"-range1_polygon_on\"","v":"-range1_polygon_on"}]

{"sheet":"EBT Polygon","index":4,"n_rows":24,"n_cols":20,"rows_kept":24,"cut":false,"hidden":false,"merged":[[6,1,20,2],[1,3,3,15]]}
[]
[null,null,null,"RT-Range EBT target polygon template"]
[]
[]
[]
[]
[null,"\n\n\n2. Enter the measurements forward and right of the origin here\n\n\n\n\n\n\n",null,"EBT point","Polygon point","Forward (m)","Right (m)","Notes",null,null,null,null,null,null,null,null,null,{"$f":"\"-range1_polygon_ref_num1\"","v":"-range1_polygon_ref_num1"}]
[null,null,null,"Origin",1,0,0,"Left elbow",null,null,null,null,null,null,null,null,null,{"$f":"\"-range1_polygon_origin0_0_0\"","v":"-range1_polygon_origin0_0_0"}]
[null,null,null,null,2,0,-0.3,"Front left handle bar",null,null,null,null,null,null,null,null,null,{"$f":"\"-range1_polygon_num_points14\"","v":"-range1_polygon_num_points14"}]
[null,null,null,null,3,0.2,-0.3,"Back left front tyre",null,null,null,null,null,null,null,null,null,{"$f":"_xlfn.CONCAT(\"-range1_polygon_point\",E8,\"_\",F8,\"_\",G8)","v":"-range1_polygon_point1_0_0"}]
[null,null,null,null,4,0.2,-0.74,"Front tyre, front left",null,null,null,null,null,null,null,null,null,{"$f":"_xlfn.CONCAT(\"-range1_polygon_point\",E9,\"_\",F9,\"_\",G9)","v":"-range1_polygon_point2_0_-0.3"}]
[null,null,null,null,5,0.3,-0.74,"Fronttyre, front right",null,null,null,null,null,null,null,null,null,"-range1_polygon_point3_0.2_-0.3"]
[null,null,null,null,6,0.3,-0.3,"Right back front of wheel",null,null,null,null,null,null,null,null,null,"-range1_polygon_point4_0.2_-0.74"]
[null,null,null,null,7,0.5,-0.3,"Front right handle bar",null,null,null,null,null,null,null,null,null,"-range1_polygon_point5_0.3_-0.74"]
[null,null,null,null,8,0.5,0,"Right elbow",null,null,null,null,null,null,null,null,null,"-range1_polygon_point6_0.3_-0.3"]
[null,null,null,null,9,0.5,0.4,"Right shoulder",null,null,null,null,null,null,null,null,null,"-range1_polygon_point7_0.5_-0.3",null," "]
[null,null,null,null,10,0.3,0.4,"Back tyre, front right",null,null,null,null,null,null,null,null,null,"-range1_polygon_point8_0.5_0"]
[null,null,null,null,11,0.3,0.86,"Back tyre, back right",null,null,null,null,null,null,null,null,null,"-range1_polygon_point9_0.5_0.4"]
[null,null,null,null,12,0.2,0.86,"Back tyre, back left",null,null,null,null,null,null,null,null,null,"-range1_polygon_point10_0.3_0.4"]
[null,null,null,null,13,0.2,0.4,"Back tyre, front left",null,null,null,null,null,null,null,null,null,"-range1_polygon_point11_0.3_0.86"]
[null,null,null,null,14,0,0.4,"Left shoulder",null,null,null,null,null,null,null,null,null,"-range1_polygon_point12_0.2_0.86"]
[null,null,null,null,null,null,null,null,null,null,null,null,null,null,null,null,null,"-range1_polygon_point13_0.2_0.4"]
[null,null,null,null,null,null,null,null,null,null,null,null,null,null,null,null,null,"-range1_polygon_point14_0_0.4"]
[null,null,null,null,null,null,null,null,null,null,null,null,null,null,null,null,null,{"$f":"\"-range1_polygon_on\"","v":"-range1_polygon_on"}]